fUSD/lending_fUSD_20241125
["ID","MTS","AMOUNT","RATE_DAILY","PERIOD"]
[343228061,1732501846267,-2000.0,0.00045479,120]
[343228062,1732501846278,-377.88781,0.0004554,28]
[343228063,1732501846289,-1672.96,0.000456,120]
[343228064,1732501846299,-2000.0,0.00045616,120]
[343228065,1732501846309,-2000.0,0.00045753,120]
[343228066,1732501846318,-2000.0,0.00045753,120]
[343228067,1732501846329,-2000.0,0.00045753,120]
[343228068,1732501846339,-2000.0,0.00045753,120]
[343228069,1732501846349,-2000.0,0.00045753,120]
[343228070,1732501846359,-1618.87954599,0.00045753,120]
[343228071,1732501846373,-381.12045401,0.00045753,120]
[343228072,1732501846382,-199.39255071,0.00045753,120]
[343228073,1732501849665,48886.0,0.0004,120]
[343228074,1732501878541,2650.6,0.0004,2]
[343228075,1732502217337,999.99,0.0004,2]
[343228076,1732502220117,234.7275,0.00038821,2]
[343228077,1732502267777,5000.0,0.0004,2]
[343228089,1732503016251,151.0,0.0003,120]
[343228090,1732503016804,151.0,0.00031945,120]
[343228091,1732503017378,151.0,0.0003389,120]
[343228092,1732503017961,151.0,0.00035836,120]
[343228093,1732503018561,151.0,0.00037781,120]
[343228094,1732503019257,151.0,0.00039726,120]
[343228109,1732503040268,-151.0,0.00041671,120]
[343228111,1732503040277,-529.63,0.00043251,2]
[343228112,1732503040291,-151.0,0.00043616,120]
[343228113,1732503040300,-1005.72000001,0.00043836,120]
[343228114,1732503040312,-994.27999999,0.00043836,120]
[343228115,1732503040321,-2000.0,0.00043836,120]
[343228116,1732503040332,-2000.0,0.00043836,120]
[343228117,1732503040341,-2000.0,0.00043836,120]
[343228118,1732503040350,-2000.0,0.00043836,120]
[343228119,1732503040360,-2000.0,0.00043836,120]
[343228120,1732503040369,-2000.0,0.00043836,120]
[343228121,1732503040378,-2000.0,0.00043836,120]
[343228122,1732503040387,-2000.0,0.00043836,120]
[343228123,1732503040397,-2000.0,0.00043836,120]
[343228124,1732503040407,-437.97,0.000448,120]
[343228125,1732503040416,-236.35067,0.0004491,30]
[343228126,1732503040425,-250.0,0.00045015,120]
[343228127,1732503040435,-250.0,0.00045022,120]
[343228128,1732503040444,-234.7275,0.00045076,2]
[343228129,1732503040454,-172.16,0.00045113,2]
[343228130,1732503040463,-75.15408444,0.00045142,2]
[343228131,1732503040474,-924.84591556,0.00045142,2]
[343228132,1732503040483,-184.16,0.00045253,2]
[343228133,1732503040493,-314.9065,0.00045262,27]
[343228134,1732503040502,-153.19,0.00045273,2]
[343228135,1732503040511,-153.19,0.00045294,2]
[343228136,1732503040520,-153.31,0.00045309,120]
[343228137,1732503040530,-153.19,0.00045314,2]
[343228138,1732503040542,-153.19,0.00045335,2]
[343228139,1732503040551,-153.19,0.00045356,2]
[343228140,1732503040561,-153.19,0.00045376,2]
[343228141,1732503040570,-153.19,0.00045397,2]
[343228142,1732503040579,-153.19,0.00045417,2]
[343228143,1732503040589,-153.19,0.00045438,2]
[343228144,1732503040598,-153.19,0.00045458,2]
[343228145,1732503040608,-153.19,0.00045479,2]
[343228146,1732503040617,-153.19,0.000455,2]
[343228147,1732503040631,-529.63,0.00045515,2]
[343228148,1732503040640,-1004.39,0.00045516,120]
[343228149,1732503040650,-151.0,0.00045562,120]
[343228150,1732503040659,-1599.81,0.000456,120]
[343228151,1732503040668,-1522.22,0.000456,120]
[343228152,1732503040678,-565.0,0.00045697,2]
[343228153,1732503040687,-119.90447443,0.00045697,2]
[343228154,1732503042130,150.0,0.0004,2]
[343228156,1732503044174,-1138.09552557,0.00045697,2]
[343228157,1732503044184,-294.20979545,0.00045697,2]
[343228158,1732503044484,-334.79020455,0.00045697,2]
[343228159,1732503044493,-1810.96937672,0.00045697,2]
[343228162,1732503046118,-186.03062328,0.00045697,2]
[343228163,1732503046128,-816.0,0.00045697,2]
[343228164,1732503046138,-3563.01501026,0.00045697,2]
[343228165,1732503046371,-715.53,0.000456,120]
[343228166,1732503046381,-189.98498974,0.00045697,2]
[343228167,1732503046391,-1262.0,0.00045697,2]
[343228168,1732503046401,-980.0,0.00045697,2]
[343228169,1732503046410,-3444.542,0.00045697,2]
[343228170,1732503046420,-150.0,0.00045697,2]
[343228171,1732503046429,-1800.60744929,0.00045753,120]
[343228172,1732503046438,-2000.0,0.00045753,120]
[343228173,1732503046447,-2000.0,0.00045753,120]
[343228174,1732503046457,-2000.0,0.00045753,120]
[343228175,1732503046467,-2000.0,0.00045753,120]
[343228176,1732503046477,-2000.0,0.00045753,7]
[343228177,1732503046487,-200.0,0.00045753,7]
[343228178,1732503046497,-1127.329,0.000458,75]
[343228179,1732503046505,-173.173,0.000458,75]
[343228180,1732503046515,-172.12,0.00045839,2]
[343228181,1732503046524,-2733.36288808,0.00045888,120]
[343228182,1732503046534,-8881.52530462,0.000459,2]
[343228183,1732503046545,-2219.87620306,0.00045999,10]
[343228184,1732503046555,-1171.42437367,0.00045999,60]
[343228185,1732503046565,-443.15,0.00046,7]
[343228186,1732503046574,-200.0,0.00046,120]
[343228187,1732503046583,-10000.0,0.00046,2]
[343228188,1732503046593,-10000.0,0.00046,2]
[343228189,1732503046603,-232.97733059,0.00046,60]
[343228190,1732503046613,-229.0,0.00046,30]
[343228191,1732503046623,-184.0,0.00046,30]
[343228192,1732503046633,-372.8313019,0.00046044,7]
[343228193,1732503046643,-200.0,0.00046044,7]
[343228194,1732503046652,-181.38262587,0.00046211,7]
[343228195,1732503046662,-150.0,0.00046286,2]
[343228196,1732503046671,-40000.0,0.00046287,30]
[343228197,1732503046680,-222.38139697,0.00046298,2]
[343228198,1732503046690,-82.27602403,0.000463,2]
[343228199,1732503046702,-253.44071616,0.000463,2]
[343228201,1732503736260,470.0,0.000249,2]
[343228202,1732503736838,423.0,0.000249,2]
[343228207,1732504093221,-156.18,0.00041096,2]
[343228208,1732504093243,-158.25,0.00041096,2]
[343228209,1732504093264,-552.3,0.00042767,2]
[343228240,1732504232592,-403.01339784,0.00044089,2]
[343228241,1732504232602,-403.01339784,0.00044111,2]
[343228242,1732504232612,-403.01339784,0.00044116,2]
[343228243,1732504232624,-294.18406175,0.00044145,2]
[343228244,1732504232636,-108.82933609,0.00044145,2]
[343228245,1732504232646,-208.0589824,0.00044188,2]
[343228261,1732504238367,-194.95441544,0.00044188,2]
[343228263,1732504238376,-295.81046169,0.0004419,2]
[343228264,1732504238665,-107.20293615,0.0004419,2]
[343228265,1732504238676,-550.0,0.00044475,5]
[343228266,1732504238686,-2695.96326167,0.00044476,30]
[343228267,1732504238701,-5371.00293156,0.00044476,30]
[343228268,1732504238712,-2972.06417044,0.00044476,30]
[343228275,1732504240446,-1172.41794562,0.00044476,30]
[343228277,1732504243369,-677.55169071,0.00044476,30]
[343228278,1732504243379,-150.43,0.00044583,2]
[343228279,1732504243388,-1358.22,0.00044635,120]
[343228280,1732504243397,-177.48,0.00044719,120]
[343228281,1732504243407,-1000.0,0.00044729,2]
[343228282,1732504243416,-162.29,0.00044731,2]
[343228283,1732504243425,-1000.0,0.00044806,2]
[343228284,1732504243434,-219.57,0.00044814,2]
[343228285,1732504243443,-250.0,0.00044906,120]
[343228286,1732504243452,-250.0,0.00044913,120]
[343228287,1732504243461,-172.16,0.00044978,2]
[343228288,1732504243471,-365.347,0.00045,80]
[343228289,1732504243480,-552.3,0.00045031,2]
[343228290,1732504243489,-153.31,0.00045203,120]
[343228291,1732504243499,-157.83,0.00045297,2]
[343228292,1732504243511,-157.83,0.0004531,2]
[343228293,1732504243521,-157.83,0.00045323,2]
[343228294,1732504243530,-157.83,0.00045337,2]
[343228295,1732504243539,-157.83,0.0004535,2]
[343228296,1732504243549,-157.83,0.00045363,2]
[343228297,1732504243558,-503.41886716,0.00045374,10]
[343228298,1732504243568,-157.83,0.00045376,2]
[343228299,1732504243578,-157.83,0.0004539,2]
[343228300,1732504243587,-157.83,0.00045403,2]
[343228301,1732504243596,-157.83,0.00045416,2]
[343228302,1732504243606,-157.83,0.0004543,2]
[343228303,1732504243615,-157.83,0.00045443,2]
[343228304,1732504243628,-157.83,0.00045456,2]
[343228305,1732504243638,-166.34,0.00045469,2]
[343228306,1732504243647,-157.83,0.0004547,2]
[343228307,1732504243657,-169.55,0.00045472,120]
[343228308,1732504243667,-157.83,0.00045483,2]
[343228309,1732504243677,-901.863,0.00045496,74]
[343228310,1732504243686,-157.83,0.00045496,2]
[343228311,1732504243697,-173.17456113,0.00045496,74]
[343228312,1732504243706,-1640.0,0.000455,3]
[343228313,1732504243715,-157.83,0.0004551,2]
[343228314,1732504243724,-157.83,0.00045523,2]
[343228315,1732504243734,-377.3,0.00045584,30]
[343228316,1732504243744,-150.0,0.00045584,30]
[343228317,1732504243754,-150.0,0.00045584,30]
[343228318,1732504243767,-450.47,0.00045584,30]
[343228319,1732504243777,-2345.84,0.00045725,2]
[343228320,1732504243786,-600.0,0.000458,16]
[343228321,1732504243796,-150.173,0.00045801,2]
[343228322,1732504243806,-565.0,0.00045801,2]
[343228323,1732504243817,-629.0,0.00045801,2]
[343228324,1732504243826,-1997.0,0.00045801,2]
[343228325,1732504243835,-816.0,0.00045801,2]
[343228326,1732504243845,-3753.0,0.00045801,2]
[343228327,1732504243854,-1262.0,0.00045801,2]
[343228328,1732504243863,-925.01,0.00045801,2]
[343228329,1732504243873,-501.09872944,0.000459,16]
[343228330,1732504243885,-698.90127056,0.000459,16]
[343228331,1732504243895,-349.5708,0.00045942,60]
[343228332,1732504243904,-5000.0,0.00046,30]
[343228333,1732504243913,-229.0,0.000461,30]
[343228334,1732504243923,-370.0,0.000461,30]
[343228335,1732504243932,-5524.68745,0.000462,2]
[343228336,1732504243941,-950.53333901,0.000462,15]
[343228337,1732504243951,-336.07584132,0.000462,2]
[343228338,1732504243960,-1224.0598,0.00046201,2]
[343228339,1732504243970,-7554.53,0.00046248,7]
[343228340,1732504243979,-10165.98,0.00046248,7]
[343228341,1732504243988,-1021.42023626,0.00046248,7]
[343228342,1732504244024,-2092.68976374,0.00046248,7]
[343228343,1732504244033,-500.0,0.00046273,2]
[343228344,1732504244042,-500.0,0.00046273,10]
[343228345,1732504244052,-5751.7141561,0.00046296,2]
[343228346,1732504244061,-18368.9983446,0.00046296,2]
[343228347,1732504244071,-318.1421449,0.00046296,2]
[343228348,1732504244081,-299.5378519,0.00046296,2]
[343228349,1732504244090,-153.53352337,0.00046299,2]
[343228350,1732504244100,-150.33187921,0.00046299,20]
[343228351,1732504244109,-11012.47635897,0.000463,12]
[343228352,1732504244120,-4591.62664658,0.000463,12]
[343228353,1732504244131,-1574.68975527,0.000463,12]
[343228354,1732504244142,-394.83662331,0.000463,12]
[343228358,1732504246442,-282.38072684,0.000463,12]
[343228359,1732504246454,-45460.51765823,0.000463,12]
[343228360,1732504246723,-1273.63639966,0.000463,12]
[343228361,1732504247011,-50000.0,0.000463,12]
[343228363,1732504407954,2636.0,0.00032,120]
[343228395,1732504866687,800.0,0.00026986,120]
[343228397,1732505108763,394885.17832813,0.00013,2]
[343228398,1732505108939,31198.0101831,0.0001,2]
[343228400,1732505314691,2511.636127,0.00025,60]
[343228417,1732505432457,-162.76711464,0.00041096,2]
[343228419,1732505432467,-248.26740645,0.00043119,2]
[343228421,1732505432477,-497.07,0.00043219,2]
[343228423,1732505432487,-248.26740643,0.00043291,2]
[343228425,1732505432496,-229.15145686,0.00043562,120]
[343228427,1732505432506,-250.0,0.0004475,120]
[343228429,1732505432515,-175.65,0.00044776,2]
[343228431,1732505432525,-150.43,0.00044799,2]
[343228433,1732505432534,-500.0,0.00044802,120]
[343228435,1732505432543,-500.0,0.00044802,120]
[343228437,1732505432552,-211.16,0.00044814,120]
[343228438,1732505432561,-250.0,0.00044911,120]
[343228439,1732505432570,-320.35,0.00044914,2]
[343228440,1732505432580,-167.14,0.00044968,2]
[343228441,1732505432590,-642.4508275,0.00045,2]
[343228442,1732505432599,-13993.54,0.00045043,2]
[343228443,1732505432609,-2410.58,0.0004513,2]
[343228444,1732505432619,-153.31,0.00045162,120]
[343228445,1732505432628,-169.55,0.00045182,120]
[343228446,1732505432638,-1000.0,0.00045223,2]
[343228447,1732505432647,-500.0,0.0004535,120]
[343228448,1732505432657,-500.0,0.0004535,120]
[343228449,1732505432667,-497.07,0.00045483,2]
[343228450,1732505432676,-500.0,0.000457,16]
[343228451,1732505432686,-1100.0,0.000458,16]
[343228452,1732505432696,-1710.42896889,0.0004584,2]
[343228453,1732505432705,-503.46462977,0.00045898,120]
[343228454,1732505432715,-500.0,0.00045898,120]
[343228455,1732505432725,-1600.0,0.000459,16]
[343228456,1732505432734,-1269.22,0.0004593,2]
[343228457,1732505432744,-3753.0,0.0004593,2]
[343228458,1732505432755,-1262.0,0.0004593,2]
[343228459,1732505432764,-816.0,0.0004593,2]
[343228460,1732505432774,-565.0,0.0004593,2]
[343228461,1732505432783,-1270.165,0.0004593,2]
[343228462,1732505432794,-632.0,0.0004593,2]
[343228463,1732505432803,-2796.06379214,0.0004599,15]
[343228464,1732505432812,-3000.0,0.00046,30]
[343228465,1732505432822,-500.0,0.00046,30]
[343228466,1732505432831,-500.62695219,0.00046,30]
[343228467,1732505432840,-500.0,0.00046,30]
[343228468,1732505432850,-416.032,0.00046,120]
[343228469,1732505432860,-5000.0,0.000461,120]
[343228470,1732505432869,-721.491,0.000461,76]
[343228471,1732505432879,-1469.99192347,0.000461,15]
[343228472,1732505432888,-176.7,0.00046133,91]
[343228473,1732505432897,-4435.0329,0.00046173,2]
[343228474,1732505432907,-9038.6023006,0.00046184,2]
[343228475,1732505432918,-1936.02947094,0.00046198,14]
[343228476,1732505432927,-170.28181822,0.00046198,28]
[343228477,1732505432936,-329.20430457,0.00046199,2]
[343228478,1732505432946,-93286.7962,0.000462,2]
[343228479,1732505432956,-193.56629592,0.000462,30]
[343228481,1732505432965,-5002.1442,0.000462,2]
[343228483,1732505432975,-167.3224,0.000462,2]
[343228485,1732505432984,-3939.558,0.000462,2]
[343228487,1732505432993,-14904.8079,0.00046201,2]
[343228489,1732505433003,-1079.051989,0.0004626,21]
[343228491,1732505433017,-500.0,0.00046273,10]
[343228493,1732505433027,-500.0,0.00046273,2]
[343228494,1732505433036,-4822.0,0.00046273,2]
[343228495,1732505433045,-4822.0,0.00046273,2]
[343228496,1732505433057,-151.0,0.00046273,14]
[343228497,1732505433066,-220.952637,0.00046273,14]
[343228498,1732505433075,-151.0,0.00046273,14]
[343228499,1732505433084,-151.0,0.00046273,14]
[343228500,1732505433093,-617.418904,0.00046273,14]
[343228501,1732505433102,-617.418904,0.00046273,14]
[343228502,1732505433111,-151.0,0.00046273,7]
[343228503,1732505433120,-341.989015,0.00046273,14]
[343228505,1732505433129,-341.989015,0.00046273,14]
[343228507,1732505433138,-151.0,0.00046273,14]
[343228509,1732505433148,-151.0,0.00046273,14]
[343228511,1732505433158,-151.0,0.00046273,14]
[343228513,1732505433168,-151.0,0.00046273,14]
[343228515,1732505433177,-1120.540457,0.00046273,14]
[343228517,1732505433187,-1120.540457,0.00046273,14]
[343228519,1732505433196,-151.0,0.00046273,14]
[343228520,1732505433206,-151.0,0.00046273,14]
[343228521,1732505433216,-151.0,0.00046273,14]
[343228522,1732505433226,-158.096478,0.00046273,14]
[343228523,1732505433235,-194.455589,0.00046273,14]
[343228524,1732505433245,-194.455589,0.00046273,14]
[343228525,1732505433255,-151.0,0.00046273,14]
[343228526,1732505433265,-151.0,0.00046273,14]
[343228527,1732505433274,-680.73352249,0.00046274,30]
[343228528,1732505433284,-282.31446577,0.00046274,30]
[343228529,1732505433294,-212.56932501,0.00046274,30]
[343228530,1732505433304,-150.0,0.00046274,30]
[343228531,1732505433313,-150.0,0.00046274,30]
[343228532,1732505433323,-150.0,0.00046274,30]
[343228533,1732505433332,-150.0,0.00046274,30]
[343228534,1732505433342,-150.0,0.00046274,30]
[343228535,1732505433351,-1000.0,0.0004628,21]
[343228536,1732505433360,-168.25,0.00046291,2]
[343228537,1732505433369,-4587.9453534,0.00046294,2]
[343228538,1732505433379,-13749.8904931,0.00046294,2]
[343228539,1732505433389,-162.07968288,0.00046294,2]
[343228540,1732505433398,-540.80109244,0.00046298,2]
[343228541,1732505433407,-500.0,0.00046298,2]
[343228542,1732505433418,-500.0,0.00046298,2]
[343228543,1732505433427,-500.0,0.00046298,2]
[343228544,1732505433437,-1080.52,0.00046298,2]
[343228545,1732505433446,-6405.92,0.00046298,2]
[343228546,1732505433456,-500.0,0.00046298,2]
[343228547,1732505433465,-500.0,0.00046298,2]
[343228548,1732505433474,-9287.32,0.00046298,2]
[343228549,1732505433483,-500.0,0.00046298,2]
[343228550,1732505433492,-4887.97,0.00046298,2]
[343228551,1732505433502,-519.7,0.00046298,2]
[343228552,1732505433511,-6764.46,0.00046298,2]
[343228553,1732505433520,-151.0,0.00046298,14]
[343228554,1732505433529,-624.55,0.00046298,2]
[343228555,1732505433539,-194.455589,0.00046298,14]
[343228556,1732505433548,-500.0,0.00046298,2]
[343228557,1732505433557,-500.0,0.00046298,2]
[343228558,1732505433567,-194.455589,0.00046298,14]
[343228559,1732505433576,-40173.0,0.00046298,2]
[343228560,1732505433586,-7573.22,0.00046298,2]
[343228561,1732505433595,-500.0,0.00046298,2]
[343228562,1732505433604,-6533.67,0.00046298,2]
[343228563,1732505433614,-390.49318725,0.00046298,2]
[343228564,1732505433623,-151.0,0.00046298,14]
[343228565,1732505433632,-10004.34,0.00046298,2]
[343228566,1732505433642,-508.73900754,0.00046298,2]
[343228567,1732505433651,-734.49,0.00046298,2]
[343228568,1732505433660,-500.0,0.00046298,2]
[343228569,1732505433671,-503.32681833,0.00046298,2]
[343228570,1732505433681,-500.0,0.00046298,2]
[343228571,1732505433690,-500.0,0.00046298,2]
[343228572,1732505433699,-500.0,0.00046298,2]
[343228573,1732505433709,-151.0,0.00046298,14]
[343228574,1732505433718,-500.0,0.00046298,2]
[343228575,1732505433727,-500.0,0.00046298,2]
[343228576,1732505433737,-420.52982323,0.00046298,2]
[343228577,1732505433747,-412.44859735,0.00046298,2]
[343228578,1732505433757,-500.0,0.00046298,2]
[343228579,1732505433767,-554.78544817,0.00046298,2]
[343228580,1732505433777,-500.0,0.00046298,2]
[343228581,1732505433786,-1556.24,0.00046298,2]
[343228582,1732505433796,-21082.09,0.00046298,2]
[343228583,1732505433805,-500.0,0.00046298,2]
[343228584,1732505433815,-500.0,0.00046298,2]
[343228585,1732505433827,-500.0,0.00046298,2]
[343228586,1732505433836,-500.20063755,0.00046298,2]
[343228587,1732505433846,-500.0,0.00046298,2]
[343228588,1732505433857,-500.0,0.00046298,2]
[343228589,1732505433867,-510.4240361,0.00046298,2]
[343228590,1732505433877,-299.427273,0.00046298,2]
[343228591,1732505433887,-500.0,0.00046298,2]
[343228592,1732505433896,-500.0,0.00046298,2]
[343228593,1732505433906,-150.01,0.00046299,2]
[343228594,1732505433917,-222.435799,0.00046299,14]
[343228595,1732505433927,-222.435799,0.00046299,14]
[343228596,1732505433936,-586.987871,0.00046299,14]
[343228597,1732505433946,-586.987871,0.00046299,14]
[343228598,1732505433955,-586.987871,0.00046299,14]
[343228599,1732505433965,-586.987871,0.00046299,14]
[343228600,1732505433976,-163.135,0.00046299,7]
[343228601,1732505433986,-163.135,0.00046299,7]
[343228602,1732505433997,-163.135,0.00046299,7]
[343228603,1732505434010,-163.135,0.00046299,7]
[343228604,1732505434020,-163.135,0.00046299,7]
[343228605,1732505434030,-163.135,0.00046299,7]
[343228606,1732505434040,-163.135,0.00046299,7]
[343228607,1732505434051,-163.135,0.00046299,7]
[343228608,1732505434060,-151.0,0.00046299,14]
[343228609,1732505434070,-151.0,0.00046299,14]
[343228610,1732505434081,-151.0,0.00046299,14]
[343228611,1732505434091,-500.0,0.00046299,2]
[343228612,1732505434101,-500.0,0.00046299,2]
[343228613,1732505434111,-151.0,0.00046299,14]
[343228614,1732505434120,-151.0,0.00046299,14]
[343228615,1732505434129,-180.645742,0.00046299,14]
[343228616,1732505434139,-151.0,0.00046299,14]
[343228617,1732505434149,-500.0,0.00046299,2]
[343228618,1732505434158,-151.0,0.00046299,14]
[343228619,1732505434169,-167.174061,0.00046299,14]
[343228620,1732505434179,-596.40453629,0.00046299,2]
[343228621,1732505434188,-500.0,0.00046299,2]
[343228622,1732505434198,-151.0,0.00046299,14]
[343228623,1732505434207,-151.0,0.00046299,14]
[343228624,1732505434216,-152.393747,0.00046299,14]
[343228625,1732505434226,-500.0,0.00046299,2]
[343228626,1732505434235,-500.0,0.00046299,2]
[343228627,1732505434244,-151.0,0.00046299,14]
[343228628,1732505434253,-151.0,0.00046299,14]
[343228629,1732505434263,-151.0,0.00046299,14]
[343228630,1732505434272,-151.0,0.00046299,14]
[343228631,1732505434281,-165.213859,0.00046299,14]
[343228632,1732505434292,-500.0,0.00046299,2]
[343228633,1732505434301,-151.0,0.00046299,14]
[343228634,1732505434310,-151.0,0.00046299,14]
[343228635,1732505434320,-151.0,0.00046299,14]
[343228636,1732505434329,-151.0,0.00046299,14]
[343228637,1732505434338,-500.0,0.00046299,2]
[343228638,1732505434347,-158.931534,0.00046299,2]
[343228639,1732505434358,-151.0,0.00046299,14]
[343228640,1732505434367,-151.0,0.00046299,14]
[343228641,1732505434376,-155.208423,0.00046299,14]
[343228642,1732505434386,-500.0,0.00046299,2]
[343228643,1732505434396,-151.0,0.00046299,14]
[343228644,1732505434405,-151.0,0.00046299,14]
[343228645,1732505434416,-151.0,0.00046299,14]
[343228646,1732505434425,-151.0,0.00046299,14]
[343228647,1732505434435,-500.0,0.00046299,2]
[343228648,1732505434446,-1494.56,0.00046299,2]
[343228649,1732505434571,-5495.32,0.00046299,2]
[343228650,1732505434582,-500.0,0.00046299,2]
[343228651,1732505434591,-151.0,0.00046299,14]
[343228652,1732505434601,-151.0,0.00046299,14]
[343228653,1732505434610,-151.0,0.00046299,14]
[343228654,1732505434620,-151.0,0.00046299,14]
[343228655,1732505434629,-500.0,0.00046299,2]
[343228656,1732505434639,-153.127889,0.00046299,14]
[343228657,1732505434648,-500.0,0.00046299,2]
[343228658,1732505434657,-617.418904,0.00046299,14]
[343228659,1732505434668,-617.418904,0.00046299,14]
[343228660,1732505434678,-617.418904,0.00046299,14]
[343228661,1732505434688,-617.418904,0.00046299,14]
[343228662,1732505434697,-617.418904,0.00046299,14]
[343228663,1732505434707,-617.418904,0.00046299,14]
[343228664,1732505434716,-617.418904,0.00046299,14]
[343228665,1732505434725,-617.418904,0.00046299,14]
[343228666,1732505434735,-500.0,0.00046299,2]
[343228667,1732505434745,-151.0,0.00046299,7]
[343228668,1732505434754,-151.0,0.00046299,7]
[343228669,1732505434763,-341.989015,0.00046299,14]
[343228670,1732505434773,-151.0,0.00046299,7]
[343228671,1732505434783,-151.0,0.00046299,7]
[343228672,1732505434792,-341.989015,0.00046299,14]
[343228673,1732505434802,-341.989015,0.00046299,14]
[343228674,1732505434812,-603.25395752,0.00046299,2]
[343228675,1732505434821,-341.989015,0.00046299,14]
[343228676,1732505434831,-500.0,0.00046299,2]
[343228677,1732505434841,-341.989015,0.00046299,14]
[343228678,1732505434850,-341.989015,0.00046299,14]
[343228679,1732505434859,-341.989015,0.00046299,14]
[343228680,1732505434868,-341.989015,0.00046299,14]
[343228681,1732505434877,-500.0,0.00046299,2]
[343228682,1732505434887,-500.0,0.00046299,2]
[343228683,1732505434896,-151.0,0.00046299,14]
[343228684,1732505434905,-152.621424,0.00046299,14]
[343228685,1732505434919,-4512.14,0.00046299,2]
[343228686,1732505434928,-151.0,0.00046299,14]
[343228687,1732505434942,-151.0,0.00046299,14]
[343228688,1732505434951,-151.0,0.00046299,14]
[343228689,1732505434961,-151.0,0.00046299,14]
[343228690,1732505434970,-694.55,0.00046299,120]
[343228691,1732505434979,-151.0,0.00046299,14]
[343228692,1732505434988,-153.749811,0.00046299,14]
[343228693,1732505434998,-11986.63,0.00046299,2]
[343228694,1732505435009,-151.0,0.00046299,14]
[343228695,1732505435020,-151.0,0.00046299,14]
[343228696,1732505435029,-162.041137,0.00046299,14]
[343228697,1732505435038,-1120.540457,0.00046299,14]
[343228698,1732505435048,-1120.540457,0.00046299,14]
[343228699,1732505435058,-1120.540457,0.00046299,14]
[343228700,1732505435068,-1120.540457,0.00046299,14]
[343228701,1732505435077,-1120.540457,0.00046299,14]
[343228702,1732505435087,-1120.540457,0.00046299,14]
[343228703,1732505435096,-1120.540457,0.00046299,14]
[343228704,1732505435106,-1120.540457,0.00046299,14]
[343228705,1732505435115,-1120.540457,0.00046299,14]
[343228706,1732505435124,-1120.540457,0.00046299,14]
[343228707,1732505435133,-151.0,0.00046299,14]
[343228708,1732505435143,-153.142761,0.00046299,14]
[343228709,1732505435152,-560.61,0.00046299,2]
[343228710,1732505435161,-151.0,0.00046299,14]
[343228711,1732505435175,-152.288215,0.00046299,14]
[343228712,1732505435184,-10959.33,0.00046299,2]
[343228713,1732505435193,-262.42209,0.00046299,32]
[343228714,1732505435202,-502.27226427,0.00046299,2]
[343228715,1732505435212,-500.0,0.00046299,2]
[343228716,1732505435221,-500.0,0.00046299,2]
[343228717,1732505435230,-5402.42,0.00046299,2]
[343228718,1732505435239,-151.0,0.00046299,14]
[343228719,1732505435249,-151.0,0.00046299,14]
[343228720,1732505435258,-151.0,0.00046299,14]
[343228721,1732505435267,-178.296606,0.00046299,14]
[343228722,1732505435276,-500.0,0.00046299,2]
[343228723,1732505435285,-194.455589,0.00046299,14]
[343228724,1732505435295,-194.455589,0.00046299,14]
[343228725,1732505435304,-194.455589,0.00046299,14]